Cogmind - Beta 16 @@@ ROGUE MODE // 2025.12.19 @ 22:09:26 Player: Gatamar Result: Destroyed by G-47 Trooper with Particle Gun Performance ------------- Evolutions (0) 0 Regions Visited (1) 200 Robots Destroyed (10) 50 Value Destroyed (186) 186 Prototype IDs (0) 0 Alien Tech Used (0) 0 Bonus (0) 0 TOTAL SCORE: 436 Bonus ------- None Cogmind --------- Core Integrity 0/250 Matter 228/300 Energy 99/100 System Corruption 0% Temperature Cool (64) Movement Walking (400) Ox4 Location -10/Materials Parts ------- > --- POWER (1) -------- (None) > --- PROPULSION (2) --- Aluminum Leg > --- UTILITY (2) ------ High-capacity Storage Unit Core Shielding > --- WEAPON (2) ------- Medium Laser Light Assault Rifle > --- INVENTORY (20) --- Light Treads Aluminum Leg Aluminum Leg Small Storage Unit Terrain Scanner Core Shielding EM Pulse Gun Datajack Mining Laser Peak State ------------ > --- POWER ------------ Light Ion Engine > --- PROPULSION ------- Aluminum Leg Aluminum Leg > --- UTILITY ---------- High-capacity Storage Unit Core Shielding > --- WEAPON ----------- Light Assault Rifle Light Assault Rifle > --- INVENTORY -------- Light Treads Aluminum Leg Aluminum Leg Small Storage Unit Terrain Scanner Core Shielding EM Pulse Gun Medium Laser Datajack Mining Laser [Rating: 8] Favorites ----------- Power Light Ion Engine Engine Light Ion Engine Propulsion Light Treads Treads Light Treads Leg Aluminum Leg Utility High-capacity Storage Unit Device Terrain Scanner Storage High-capacity Storage Unit Protection Core Shielding Weapon Light Assault Rifle Energy Gun Medium Laser Ballistic Gun Light Assault Rifle Special Melee Weapon Datajack Build | -11 -10 ------- Run | Yrd Mat Slots Evolved . | . . Power . | . . Propulsion . | . . Utility . | . . Weapon . | . . Parts Attached 14 | 6 8 Power 2 | 1 1 Engine 2 | 1 1 Core . | . . Reactor . | . . Propulsion 4 | 2 2 Treads 2 | 2 . Leg 2 | . 2 Wheel . | . . Hover . | . . Flight . | . . Utility 4 | 1 3 Device 1 | . 1 Storage 2 | 1 1 Processor . | . . Hackware . | . . Protection 1 | . 1 Artifact . | . . Weapon 4 | 2 2 Energy Gun 1 | 1 . Energy Cannon . | . . Ballistic Gun 2 | 1 1 Ballistic Cannon . | . . Launcher . | . . Special Weapon . | . . Impact Weapon . | . . Slashing Weapon . | . . Piercing Weapon . | . . Special Melee Weapon 1 | . 1 Unidentified Prototypes . | . . Parts Lost 6 | . 6 Power 2 | . 2 Propulsion 2 | . 2 Utility 1 | . 1 Weapon 1 | . 1 Highest Loss Streak 3 | . 3 To Critical Strikes . | . . Average Backups 6 | 1 7 Power . | . . Propulsion 2 | 1 2 Utility 1 | . 1 Weapon 2 | . 3 Tool/Special . | . . Unused Backups 6 | . 6 Power . | . . Propulsion 2 | . 2 Utility 2 | . 2 Weapon 2 | . 2 Tool/Special . | . . Average Slot Usage (%) 93 | . 93 Engine 13 | . 13 Treads 18 | . 18 Leg 9 | . 9 Device 6 | . 6 Storage 14 | . 14 Protection 4 | . 4 Energy Gun 2 | . 2 Ballistic Gun 16 | . 16 Special Melee Weapon 8 | . 8 Peak Build Rating 8 | 6 8 Average Rating 6 | 4 6 On Entrance 3 | . 6 Avg Prop Armor Cover (%) . | . . Naked Turns . | . . Heaviest Build 46 | 11 46 Greatest Support 40 | 40 40 Greatest Overweight (x) 2 | . 2 Average Overweight (x) . | . . Largest Inventory Capacity 20 | 8 20 Average Capacity 15 | 6 17 Most Carried 10 | 3 10 Average Carried 6 | 1 7 Final Capacity 20 | 8 20 Final Carried 9 | 3 9 Class Distribution -------------------- 100% | Mutant Dominant Class ---------------- Mutant | -10/Materials Resources | -11 -10 ----------- Run | Yrd Mat Matter Collected 340 | 202 138 Remotely . | . . Salvage Created 305 | . 305 Parts 21 | . 21 Haulers Intercepted . | . . Recyclers Shooed . | . . Parts Field Recycled . | . . Retrieved Matter . | . . Parts Self-Destructed . | . . Prevented . | . . Parts Restored . | . . Kills | -11 -10 ------- Run | Yrd Mat Combat Hostiles Destroyed 7 | . 7 Guns 7 | . 7 Classes Destroyed 4 | . 4 Worker 2 | . 2 Builder 1 | . 1 Swarmer 3 | . 3 Grunt 4 | . 4 Best Kill Streak 3 | . 3 Combat Bots Only 3 | . 3 Max Kills in Single Turn 1 | . 1 Gunslinging . | . . Exploded . | . . Melee . | . . Uniques/NPCs Destroyed . | . . Combat | -11 -10 -------- Run | Yrd Mat Hostile Shots Fired 108 | . 108 Missed 29 | . 29 Hits 79 | . 79 Projectile 79 | . 79 Critical Strikes 1 | . 1 Damage Taken 988 | . 988 Core 260 | . 260 Absorbed by Shields . | . . Redirected to Shielding 24 | . 24 Core Remaining (%) 100 | 100 . Volleys Fired 78 | . 78 Largest 2 | . 2 Hottest 70 | . 70 Shots Fired 97 | . 97 Gun 97 | . 97 Cannon . | . . Launcher . | . . Special . | . . Kinetic 92 | . 92 Thermal 5 | . 5 Explosive . | . . Electromagnetic . | . . Robot Hit Streak 10 | . 10 Robot Miss Streak 3 | . 3 Penetration Max . | . . Secondary Targets 1 | . 1 Max Gunslinging Chain 1 | . 1 Shots Hit Robots 65 | . 65 Core Hits 23 | . 23 Critical Kills 1 | . 1 Critical Parts Destroyed 1 | . 1 Critical Strikes 3 | . 3 Burn 1 | . 1 Destroy 2 | . 2 Melee Attacks . | . . Impact . | . . Slashing . | . . Piercing . | . . Sneak Attacks . | . . Combat Hostiles . | . . Follow-up Attacks . | . . Damage Inflicted 572 | . 572 Guns 572 | . 572 Cannons . | . . Explosions . | . . Melee . | . . Ramming . | . . Kinetic 547 | . 547 Thermal 25 | . 25 Explosive . | . . Electromagnetic . | . . Impact . | . . Slashing . | . . Piercing . | . . Highest Corruption . | . . Average Corruption . | . . Corruption Purged . | . . Corruption Blocked . | . . Overload Shots . | . . Overflow Damage . | . . Projectiles . | . . Explosions . | . . Melee . | . . Knockbacks . | . . Impact . | . . Kinetic . | . . Secondary . | . . Self-Inflicted Damage . | . . Shots . | . . Rammed . | . . Targets Rammed . | . . Kicked . | . . Crushed . | . . Highest Temperature 60 | . 60 Average Temperature 15 | . 15 Received Heat Transfer 528 | . 528 Siege Activations . | . . Martial Activations . | . . Shielding Activations . | . . Robots Disrupted . | . . Combat Hostiles . | . . Robots Corrupted . | . . Combat Hostiles . | . . Parts Fried . | . . Impact Corruptions . | . . Robots Melted . | . . Combat Hostiles . | . . Parts Melted . | . . Heat Transferred 148 | . 148 Parts Sabotaged . | . . Parts Stolen . | . . Parts Stripped . | . . Power Chain Reactions . | . . Alert | -11 -10 ------- Run | Yrd Mat Maximum Alert Level . | . . Low Security (%) 100 | 100 100 Level 1 . | . . Level 2 . | . . Level 3 . | . . Level 4 . | . . Level 5 . | . . High Security . | . . Max Security . | . . Peak Influence 65 | . 65 Initial . | . . Average 14 | . 16 Influence Increases 205 | . 205 Destroy 0b10 Robot/C 140 | . 140 Destroy 0b10 Robot/NC 15 | . 15 Destroy Leader 30 | . 30 Successful Hack 5 | . 5 Lose Combat Pursuer 15 | . 15 Influence Decreases 205 | . 205 Time Decay 179 | . 179 Lost Part 26 | . 26 Squads Dispatched 1 | . 1 Investigation . | . . Extermination . | . . Reinforcement 1 | . 1 Assault . | . . Garrison . | . . Intercept . | . . Searches Triggered . | . . Construction Impeded . | . . Haulers Reinforced . | . . Active Scanning Responses . | . . Cargo Convoy Interrupts . | . . Stealth | -11 -10 --------- Run | Yrd Mat Distress Signals . | . . Communications Jammed . | . . Distress Signals . | . . Times Spotted 17 | . 17 Peak Tracking Total 4 | . 4 Tactical Retreats 1 | . 1 Traps | -11 -10 ------- Run | Yrd Mat Traps Triggered . | . . Indirectly . | . . Trap Hack Attempts . | . . Triggered . | . . Disarmed . | . . Reprogrammed . | . . Reused . | . . Traps Extracted . | . . Installed . | . . Triggered . | . . Machines | -11 -10 ---------- Run | Yrd Mat Machines Disabled . | . . Max in Single Turn . | . . Machines Repaired . | . . Machines Dismantled . | . . Machines Sabotaged . | . . Overloaded Fab Kills . | . . Hacking | -11 -10 --------- Run | Yrd Mat Machines Accessed 3 | . 3 Terminals 2 | . 2 Fabricators . | . . Repair Stations . | . . Recycling Units 1 | . 1 Scanalyzers . | . . Garrison Access . | . . Total Hacks 6 | . 6 Successful 5 | . 5 Failed 1 | . 1 Catastrophic . | . . Database Lockouts . | . . Manual . | . . Terminals 2 | . 2 Fabricators . | . . Repair Stations . | . . Recycling Units 4 | . 4 Scanalyzers . | . . Garrison Access . | . . Terminal Hacks 2 | . 2 Alert Level 1 | . 1 Hauler Manifests 1 | . 1 Fabricator Hacks . | . . Repair Station Hacks . | . . Recycling Unit Hacks 3 | . 3 Process 1 | . 1 Report Inventory 1 | . 1 Retrieve Matter 1 | . 1 Scanalyzer . | . . Garrison Access Hacks . | . . Unauthorized Hacks . | . . Terminals . | . . Fabricators . | . . Repair Stations . | . . Recycling Units . | . . Scanalyzers . | . . Garrison Access . | . . Data Cores Recovered . | . . Used . | . . Hacking Detections 1 | . 1 Full Trace Events . | . . Feedback Events . | . . Feedback Blocked . | . . Robot Schematics Acquired . | . . Robots Built . | . . Authchips . | . . Time . | . . Total Robot Build Rating . | . . Part Schematics Acquired . | . . Parts Built . | . . Authchips . | . . Time . | . . Total Part Build Rating . | . . Part Studies Acquired . | . . Parts Repaired . | . . Time . | . . Parts Recycled . | . . Recycled Matter . | . . Retrieved Matter . | . . Retrieved Components . | . . Parts Scanalyzed . | . . Part Schematics Acquired . | . . Parts Damaged . | . . Bothacking | -11 -10 ------------ Run | Yrd Mat Used RIF Installer . | . . Robots Hacked . | . . Non-combat . | . . Combat . | . . Robot Hacks Applied . | . . Relay Couplers Released . | . . Fabnet Peak Effective % . | . . Robots Rewired . | . . Allies Hacked . | . . Hacks Repelled . | . . Allies | -11 -10 -------- Run | Yrd Mat Total Allies . | . . Largest Group . | . . Highest-Rated Group . | . . Highest-Rated Ally . | . . Total Orders . | . . Ally Attacks . | . . Total Damage . | . . Kills . | . . Allies Corrupted . | . . Allies Melted . | . . Intel | -11 -10 ------- Run | Yrd Mat Active Infowar (turns) 402 | . 402 Terrain 402 | . 402 Robot Analysis Total . | . . Derelict Logs Recovered . | . . Drone Launches . | . . Drone Recoveries . | . . Exploration | -11 -10 ------------- Run | Yrd Mat Turns Passed 1030 | 115 915 Spaces Moved 407 | 61 346 Core 2 | 2 . Treads 325 | 59 266 Legs 80 | . 80 Wheels . | . . Hover . | . . Flight . | . . Fastest Speed 50 | 50 160 Average Speed 204 | 156 213 Slowest Speed 260 | 160 260 Overloaded Moves . | . . Propulsion Burnouts . | . . Robots Hopped . | . . Potential Cave-ins . | . . Cave-ins Triggered . | . . Exploration Rate (%) 27 | 4 50 Regions Visited 1 Branch Regions . Pre-discovered Areas . | . . Known Exits Taken . | . . Unknown Exits Taken 1 | 1 . Scrap Searched . | . . Spaces Dug . | . . Terrain Destroyed . | . . Melee . | . . Projectile . | . . AOE . | . . Terrain Rammed . | . . Walls Destroyed . | . . Machines Disabled . | . . Actions | -11 -10 --------- Run | Yrd Mat Total 519 | 78 441 Wait 8 | 8 . Move 406 | 60 346 Hop . | . . Pick Up 12 | 4 8 Fast Attach 7 | 5 2 Attach 4 | 1 3 Detach . | . . Swap 4 | . 4 Drop . | . . Fire 78 | . 78 Melee . | . . Ram . | . . Kick . | . . Crush . | . . Escape Stasis . | . . Rewire . | . . Trap . | . . Miscellaneous . | . . Route ------- -11/Scrapyard -10/Materials (discovered 3 exits: [*Mat x2] / [*Min]) History --------- Turn | Location | Event 62 | -11/Scrapyard | Discovered new exit (range 15) 116 | -11/Scrapyard | Entered Materials 252 | -10/Materials | Discovered new exit (range 12) 307 | -10/Materials | Build established: Mutant 372 | -10/Materials | Discovered new exit (range 16) 711 | -10/Materials | Core integrity fell below 50% 737 | -10/Materials | Lost 3 parts (1p1n1u) 849 | -10/Materials | Discovered new exit (range 15) 988 | -10/Materials | Core integrity fell below 20% 1031 | -10/Materials | Destroyed by G-47 Trooper with Particle Gun Last Messages --------------- 00799_ Destroyed Sml. Laser. 00801_ K-01 Serf collects debris. 00802_ G-34 Mercenary destroyed. 00804_ K-01 Serf collects debris. 00804_ Acquired 30 matter. 00807_ K-01 Serf collects debris. 00809_ Acquired Aluminum Leg. 00812_ K-01 Serf collects debris. 00813_ Acquired Aluminum Leg. 00816_ K-01 Serf collects debris. 00817_ Acquired Terrain Scanner. 00831_ K-01 Serf cleans the Terminal. 00849_ EXIT=FOUND 00956_ Lgt. Assault Rifle destroyed. 01001_ Critical hit (Burn: +37). 01017_ G-47 Trooper suffers critical hit (Burn). 01019_ Lgt. Ion Engine destroyed. 01021_ Aluminum Leg destroyed. 01029_ Destroyed Imp. Heat Sink. [Achievement: Back For More] Map ----- +----------------------------------------------------+ | | | | | | | | | | | | | | | | | | | ????????????#????????????????????????????????????? | | ?? ????#??????#???????###????????????????????????? | | ???????############### #???????????????????????? | | ?? ???# # # #?????#?????????????????? | | ? ???? # # # #???????????????????????? | | ???? ??# # "" # #?#?????????????????????? | | ???? ??# # "Y # #???????????????????????? | | ???? ? # [ | # "" # #????#??????????????????? | | ? ?? ?#= *[ # # #??###??????????????????? | | ##+######+######+#+####+### #????????????????? | | ^=%= #????????????????? | | < * ???????????? | | ^ ##+??????????????? | | ####### ########### #????????????????? | | ?###### #??#?######## ###????????????????? | | ??# # ##?### # #??????????????????? | | ???# # #??#?# @ g #??????????????????? | | ###????# # #????# ""#g#??????????????????? | | #?#????# # ###?## Y"# #??????????????????? | | ???????# # #??#?# ""# #?###########??????? | | ???????# # #????# # #?# ######?? | | ?????? # + #????######## #?# ## #?? | | ??? ? ?# # ############# #?# ## #?? | | ?# ###### #?# """" ## #?? | | ?# ##########+## #?# """" ## #?? | | ???#??####### #???????? ??# #?# """" ## #?? | | ??#?######### #########???# #?# ## #?? | | ?????# / # # !#????# #?# ## ##? | | ?????# [[ # # #????# #?#######+### #? | | ?????# # # #????# #????# #? | | ?????# # # "T" #?#??# #????# " #? | | ??T??# + + """ =#??#?# #????# #? | | ?????# ! # # #?#??# #????# #### #? | | ?????######## ########?####+###### #??#######? | | ???????????# "#?????# # #?????????? | | ????????? ?# ""#?????# """ """ + #?????????? | | ????#?#????# !!#???#?# """ """ # #?????????? | | ??????+????# < ""#?????# """ """ # #?????????? | | ??????????"# |#?????# # #?????????? | | ???????????# ""#?????# # #?????????? | | ???????????# "#???#?# # #?????????? | +----------------------------------------------------+ Best States ------------- Heat Dissipation 25 Energy Generation 10 Energy Capacity 125 Matter Stores 264 Matter Capacity 300 Sight Range 16 Terrain Scan Range 14 Terrain Scan Density 10 Core Shielding 20 Evasion (%) 40 Recoil Reduction 2 Item Schematics ----------------- None Robot Schematics ------------------ None Fabricated ------------ Nothing Repaired ---------- Nothing Studied --------- None Alien Tech Used ----------------- None Achievements -------------- Back For More Challenges ------------ None Game ------ Seed ScrapStasisWheel Manual? 0 Play Time 00:07:52 Cumulative 18.3 hours Start 2025.12.19 @ 22:02:39 End 2025.12.19 @ 22:09:26 Sessions 1 Manual Loads 0 Difficulty Rogue Special Mode None Game No. 50 Rogue 50 Adventurer 0 Explorer 0 Win Type - Total 0 Types 0/0/0/0/0/0/0/0/0/0 Lore% 17 Gallery% 22 Achievement% 17 Wizard Run 0 Options --------- Layout 1 ASCII 0 Keyboard 0 Movement Mouse Keybinds 0 Fullscreen 1 Font 32/SmallcapsGlow Map View 50x35 Zoom Use 0% Tactical HUD 1 Map Filters NONE Filters NONE Steam 1 RUN: d64d3cb1-1ed8-4362-9652-0fb93648ab60